[Event "*** Titled Tuesday Blitz"]
[Site "Chess.com"]
[Date "2018.04.03"]
[Round "7"]
[White "ViktorMatviishen"]
[Black "ST-Sandavagur"]
[Result "1-0"]
[WhiteElo "2565"]
[BlackElo "2435"]
[TimeControl "180+2"]
[EndTime "14:32:13 PDT"]
[Termination "ViktorMatviishen won by resignation"]

1. d4 {[%clk 0:03:01.9]} 1... Nf6 {[%clk 0:02:48.8]} 2. c4 {[%clk 0:03:01.6]}
2... g6 {[%clk 0:02:49.9]} 3. Nc3 {[%clk 0:02:57.8]} 3... Bg7 {[%clk 0:02:51.3]}
4. e4 {[%clk 0:02:57.7]} 4... d6 {[%clk 0:02:52.8]} 5. Bd3 {[%clk 0:02:59.1]}
5... O-O {[%clk 0:02:54.1]} 6. Nge2 {[%clk 0:03:00.6]} 6... e5 {[%clk
0:02:47.6]} 7. d5 {[%clk 0:03:01.5]} 7... Nbd7 {[%clk 0:02:43.4]} 8. O-O {[%clk
0:03:02.1]} 8... Nh5 {[%clk 0:02:43.5]} 9. f3 {[%clk 0:02:56.9]} 9... f5 {[%clk
0:02:41]} 10. exf5 {[%clk 0:02:58.8]} 10... gxf5 {[%clk 0:02:42.9]} 11. Be3
{[%clk 0:02:59]} 11... Nc5 {[%clk 0:02:37.3]} 12. Bc2 {[%clk 0:02:57.4]} 12...
a5 {[%clk 0:02:29.8]} 13. b3 {[%clk 0:02:46.1]} 13... Kh8 {[%clk 0:02:23.1]} 14.
Kh1 {[%clk 0:02:45.3]} 14... Na6 {[%clk 0:01:57.7]} 15. Rc1 {[%clk 0:02:42.9]}
15... Qf6 {[%clk 0:01:55.9]} 16. Qd2 {[%clk 0:02:40.4]} 16... Bd7 {[%clk
0:01:21.1]} 17. Rg1 {[%clk 0:02:32]} 17... Rg8 {[%clk 0:01:16.6]} 18. Bg5 {[%clk
0:02:15.5]} 18... Qf7 {[%clk 0:01:16.2]} 19. g4 {[%clk 0:01:29.1]} 19... Nf6
{[%clk 0:00:24.5]} 20. Bxf5 {[%clk 0:01:22.3]} 20... Bxf5 {[%clk 0:00:24.9]} 21.
gxf5 {[%clk 0:01:24.2]} 21... Nh5 {[%clk 0:00:26.2]} 22. Qd3 {[%clk 0:01:17.9]}
22... Nc5 {[%clk 0:00:23.8]} 23. Qb1 {[%clk 0:01:15.3]} 23... Raf8 {[%clk
0:00:23.8]} 24. Ng3 {[%clk 0:01:03.2]} 24... Nxg3+ {[%clk 0:00:23.8]} 25. Rxg3
{[%clk 0:01:05.1]} 25... Qxf5 {[%clk 0:00:23.5]} 26. Qxf5 {[%clk 0:01:05.9]}
26... Rxf5 {[%clk 0:00:25.4]} 27. Rcg1 {[%clk 0:01:04.9]} 27... Rgf8 {[%clk
0:00:22.1]} 28. Kg2 {[%clk 0:00:58.6]} 28... Nd3 {[%clk 0:00:20.7]} 29. Be3
{[%clk 0:00:53.8]} 29... Nf4+ {[%clk 0:00:07.6]} 30. Kh1 {[%clk 0:00:50.2]}
30... Bh6 {[%clk 0:00:08.7]} 31. Ne4 {[%clk 0:00:48.1]} 31... a4 {[%clk
0:00:06.9]} 32. c5 {[%clk 0:00:42.7]} 32... axb3 {[%clk 0:00:07.3]} 33. axb3
{[%clk 0:00:43.7]} 33... dxc5 {[%clk 0:00:03.6]} 34. Bxc5 {[%clk 0:00:44.4]}
34... Rd8 {[%clk 0:00:04.5]} 35. Be7 {[%clk 0:00:43.6]} 35... Re8 {[%clk
0:00:04.6]} 36. Bf6+ {[%clk 0:00:40.5]} 36... Rxf6 {[%clk 0:00:04.1]} 37. Nxf6
{[%clk 0:00:42.4]} 37... Rf8 {[%clk 0:00:03.9]} 38. Rg8+ {[%clk 0:00:43.5]} 1-0

[Event "*** Titled Tuesday Blitz"]
[Site "Chess.com"]
[Date "2018.04.03"]
[Round "7"]
[White "GMHess"]
[Black "Hrant_ChessMood"]
[Result "1-0"]
[WhiteElo "2545"]
[BlackElo "2910"]
[TimeControl "180+2"]
[EndTime "14:32:14 PDT"]
[Termination "GMHess won on time"]

1. d4 {[%clk 0:03:01.9]} 1... Nf6 {[%clk 0:03:00.5]} 2. c4 {[%clk 0:02:59]} 2...
g6 {[%clk 0:03:01.5]} 3. Nc3 {[%clk 0:02:45.5]} 3... Bg7 {[%clk 0:03:01.9]} 4.
e4 {[%clk 0:02:46.6]} 4... O-O {[%clk 0:03:02.6]} 5. Nf3 {[%clk 0:02:47.3]} 5...
d6 {[%clk 0:03:03.9]} 6. Be2 {[%clk 0:02:48.8]} 6... c5 {[%clk 0:03:05.1]} 7.
dxc5 {[%clk 0:02:47.8]} 7... dxc5 {[%clk 0:03:02.5]} 8. Be3 {[%clk 0:02:43.1]}
8... b6 {[%clk 0:02:51.2]} 9. Qc2 {[%clk 0:02:27.5]} 9... Nc6 {[%clk 0:02:44.2]}
10. Rd1 {[%clk 0:02:15.4]} 10... Qc7 {[%clk 0:02:39.1]} 11. Nd5 {[%clk 0:01:42]}
11... Qb8 {[%clk 0:01:54.7]} 12. O-O {[%clk 0:00:51.3]} 12... Bg4 {[%clk
0:01:46.3]} 13. Bf4 {[%clk 0:00:23.3]} 13... Qb7 {[%clk 0:01:33.5]} 14. e5
{[%clk 0:00:17.9]} 14... Nd7 {[%clk 0:01:33.1]} 15. h3 {[%clk 0:00:16.8]} 15...
Bf5 {[%clk 0:01:29.7]} 16. Qa4 {[%clk 0:00:15.1]} 16... Ndxe5 {[%clk 0:01:24.9]}
17. Nxe5 {[%clk 0:00:14.6]} 17... Nxe5 {[%clk 0:01:24.9]} 18. Bxe5 {[%clk
0:00:14]} 18... Bxe5 {[%clk 0:01:25.7]} 19. Bf3 {[%clk 0:00:15.9]} 19... Kg7
{[%clk 0:01:08.1]} 20. Rfe1 {[%clk 0:00:11.8]} 20... Bd7 {[%clk 0:00:33.1]} 21.
Qc2 {[%clk 0:00:09]} 21... Bf5 {[%clk 0:00:20.7]} 22. Qa4 {[%clk 0:00:07.8]}
22... Bd7 {[%clk 0:00:21.1]} 23. Qb3 {[%clk 0:00:09.4]} 23... e6 {[%clk
0:00:12.9]} 24. Rxe5 {[%clk 0:00:05.5]} 24... exd5 {[%clk 0:00:13.8]} 25. cxd5
{[%clk 0:00:04.1]} 25... Rae8 {[%clk 0:00:10.9]} 26. Qc3 {[%clk 0:00:04.2]}
26... f6 {[%clk 0:00:09.3]} 27. d6 {[%clk 0:00:03.6]} 27... Bc6 {[%clk
0:00:04.9]} 28. Re7+ {[%clk 0:00:02.9]} 28... Rxe7 {[%clk 0:00:06.2]} 29. dxe7
{[%clk 0:00:03.7]} 29... Re8 {[%clk 0:00:08.1]} 30. Rd6 {[%clk 0:00:03.6]} 30...
Bxf3 {[%clk 0:00:05]} 31. Qxf6+ {[%clk 0:00:05]} 31... Kg8 {[%clk 0:00:06.3]}
32. Rd8 {[%clk 0:00:05.8]} 1-0

[Event "*** Titled Tuesday Blitz"]
[Site "Chess.com"]
[Date "2018.04.03"]
[Round "7"]
[White "andante"]
[Black "Jbd735"]
[Result "1-0"]
[WhiteElo "2192"]
[BlackElo "2224"]
[TimeControl "180+2"]
[EndTime "14:32:14 PDT"]
[Termination "andante won on time"]

1. d4 {[%clk 0:02:59.5]} 1... d5 {[%clk 0:02:58.8]} 2. Nf3 {[%clk 0:02:59]} 2...
Nf6 {[%clk 0:02:58.9]} 3. c4 {[%clk 0:02:59.2]} 3... c6 {[%clk 0:02:59.6]} 4.
Nc3 {[%clk 0:03:00]} 4... e6 {[%clk 0:02:59.7]} 5. e3 {[%clk 0:02:59.4]} 5...
Nbd7 {[%clk 0:02:59.5]} 6. Bd3 {[%clk 0:03:00.6]} 6... dxc4 {[%clk 0:03:00.5]}
7. Bxc4 {[%clk 0:03:01]} 7... b5 {[%clk 0:03:02.4]} 8. Bd3 {[%clk 0:02:58.1]}
8... a6 {[%clk 0:03:03.4]} 9. e4 {[%clk 0:02:55.6]} 9... c5 {[%clk 0:03:04.3]}
10. d5 {[%clk 0:02:54.6]} 10... c4 {[%clk 0:03:00.5]} 11. Bc2 {[%clk 0:02:53.7]}
11... Qc7 {[%clk 0:03:01.2]} 12. O-O {[%clk 0:02:46.6]} 12... Bb7 {[%clk
0:03:01.2]} 13. Nd4 {[%clk 0:02:38.5]} 13... e5 {[%clk 0:02:37]} 14. Nf5 {[%clk
0:02:36.6]} 14... g6 {[%clk 0:02:37.6]} 15. Nh6 {[%clk 0:01:58.1]} 15... Be7
{[%clk 0:02:15.7]} 16. Qf3 {[%clk 0:01:51.1]} 16... Nc5 {[%clk 0:01:55.7]} 17.
Bg5 {[%clk 0:01:45.2]} 17... Qb6 {[%clk 0:01:26.6]} 18. Rad1 {[%clk 0:01:40.6]}
18... Rd8 {[%clk 0:01:25.7]} 19. Qg3 {[%clk 0:01:31.3]} 19... Qd6 {[%clk
0:01:06]} 20. Kh1 {[%clk 0:01:29.8]} 20... Kf8 {[%clk 0:01:05.4]} 21. f4 {[%clk
0:01:28.2]} 21... Nh5 {[%clk 0:01:00]} 22. Qh4 {[%clk 0:00:56.8]} 22... exf4
{[%clk 0:00:29.1]} 23. Ng4 {[%clk 0:00:46.5]} 23... f6 {[%clk 0:00:13]} 24. Bh6+
{[%clk 0:00:41.5]} 24... Kf7 {[%clk 0:00:14.1]} 25. Ne2 {[%clk 0:00:29.2]} 25...
f5 {[%clk 0:00:13.5]} 26. Qh3 {[%clk 0:00:16]} 26... fxg4 {[%clk 0:00:13.9]} 27.
Qxg4 {[%clk 0:00:17.2]} 27... Bc8 {[%clk 0:00:14.2]} 28. Qf3 {[%clk 0:00:17.1]}
28... Kg8 {[%clk 0:00:13.4]} 29. Nxf4 {[%clk 0:00:17]} 29... Nxf4 {[%clk
0:00:12.5]} 30. Bxf4 {[%clk 0:00:18]} 30... Qd7 {[%clk 0:00:12.3]} 31. e5 {[%clk
0:00:19.1]} 31... Rf8 {[%clk 0:00:10.6]} 32. e6 {[%clk 0:00:20.1]} 32... Qb7
{[%clk 0:00:10.8]} 33. Qg3 {[%clk 0:00:21.1]} 33... Nd3 {[%clk 0:00:09.1]} 34.
Bxd3 {[%clk 0:00:20.7]} 34... cxd3 {[%clk 0:00:11]} 35. Rxd3 {[%clk 0:00:21.3]}
35... Bc5 {[%clk 0:00:04.2]} 36. Rdf3 {[%clk 0:00:22]} 36... Kg7 {[%clk
0:00:03.9]} 37. Be5+ {[%clk 0:00:22.7]} 1-0

[Event "*** Titled Tuesday Blitz"]
[Site "Chess.com"]
[Date "2018.04.03"]
[Round "7"]
[White "RandomOracle"]
[Black "nOcHeaTiNgKiD"]
[Result "0-1"]
[WhiteElo "2145"]
[BlackElo "2390"]
[TimeControl "180+2"]
[EndTime "14:32:17 PDT"]
[Termination "nOcHeaTiNgKiD won on time"]

1. c4 {[%clk 0:02:58.4]} 1... e6 {[%clk 0:03:00.5]} 2. Nf3 {[%clk 0:02:58.8]}
2... d5 {[%clk 0:03:01.4]} 3. g3 {[%clk 0:02:59.5]} 3... Nf6 {[%clk 0:03:02.7]}
4. Bg2 {[%clk 0:03:00.6]} 4... Be7 {[%clk 0:03:04.2]} 5. O-O {[%clk 0:03:01.3]}
5... O-O {[%clk 0:03:05.4]} 6. d4 {[%clk 0:03:00.7]} 6... dxc4 {[%clk
0:03:06.4]} 7. Qc2 {[%clk 0:03:00.5]} 7... c6 {[%clk 0:03:07.5]} 8. a4 {[%clk
0:02:57.6]} 8... b6 {[%clk 0:03:06.4]} 9. Na3 {[%clk 0:02:51.8]} 9... Bb7 {[%clk
0:03:06.4]} 10. Nxc4 {[%clk 0:02:52.2]} 10... Nbd7 {[%clk 0:03:07.2]} 11. Rd1
{[%clk 0:02:51.1]} 11... Rc8 {[%clk 0:03:03.2]} 12. Nfe5 {[%clk 0:02:48.3]}
12... Nd5 {[%clk 0:02:43.8]} 13. a5 {[%clk 0:02:39]} 13... b5 {[%clk 0:02:27.1]}
14. Nxd7 {[%clk 0:02:22.8]} 14... Qxd7 {[%clk 0:02:23.3]} 15. Ne5 {[%clk
0:02:18.9]} 15... Qc7 {[%clk 0:02:23]} 16. e4 {[%clk 0:01:38.3]} 16... Nb4
{[%clk 0:02:14.5]} 17. Qb3 {[%clk 0:01:38.4]} 17... c5 {[%clk 0:02:04.9]} 18.
Bf4 {[%clk 0:01:37.9]} 18... c4 {[%clk 0:02:00.1]} 19. Qc3 {[%clk 0:01:31.7]}
19... g5 {[%clk 0:01:47.9]} 20. Be3 {[%clk 0:01:16]} 20... f5 {[%clk 0:01:45.7]}
21. f3 {[%clk 0:00:57.2]} 21... h6 {[%clk 0:01:19.6]} 22. Ng6 {[%clk 0:00:46.7]}
22... Rfe8 {[%clk 0:01:13.3]} 23. Nxe7+ {[%clk 0:00:46.1]} 23... Qxe7 {[%clk
0:01:14]} 24. h4 {[%clk 0:00:19.9]} 24... gxh4 {[%clk 0:01:05.4]} 25. gxh4
{[%clk 0:00:19.2]} 25... Nd3 {[%clk 0:01:02.7]} 26. a6 {[%clk 0:00:16.8]} 26...
b4 {[%clk 0:00:58.5]} 27. Qd2 {[%clk 0:00:10.1]} 27... Bc6 {[%clk 0:00:55.5]}
28. Bxh6 {[%clk 0:00:10.5]} 28... Qxh4 {[%clk 0:00:53]} 29. Bg5 {[%clk
0:00:08.4]} 29... Qg3 {[%clk 0:00:48.2]} 30. b3 {[%clk 0:00:07.3]} 30... fxe4
{[%clk 0:00:27.1]} 31. fxe4 {[%clk 0:00:06.8]} 31... Bxe4 {[%clk 0:00:28.1]} 32.
bxc4 {[%clk 0:00:06.6]} 32... Rxc4 {[%clk 0:00:25.8]} 33. Rf1 {[%clk 0:00:03.6]}
33... Rec8 {[%clk 0:00:21.5]} 0-1

[Event "*** Titled Tuesday Blitz"]
[Site "Chess.com"]
[Date "2018.04.03"]
[Round "7"]
[White "Kangoroo3000"]
[Black "RitvarsReimanis"]
[Result "1-0"]
[WhiteElo "2408"]
[BlackElo "2372"]
[TimeControl "180+2"]
[EndTime "14:32:24 PDT"]
[Termination "Kangoroo3000 won by resignation"]

1. d4 {[%clk 0:03:01]} 1... d5 {[%clk 0:03:00.4]} 2. c4 {[%clk 0:02:58.9]} 2...
e6 {[%clk 0:02:58.7]} 3. Nf3 {[%clk 0:02:59.8]} 3... Nf6 {[%clk 0:02:58.7]} 4.
g3 {[%clk 0:03:01.1]} 4... Be7 {[%clk 0:02:59.1]} 5. Bg2 {[%clk 0:03:02.4]} 5...
O-O {[%clk 0:03:00.5]} 6. O-O {[%clk 0:03:04]} 6... dxc4 {[%clk 0:03:01.2]} 7.
Ne5 {[%clk 0:03:05.2]} 7... Nc6 {[%clk 0:02:57.7]} 8. Bxc6 {[%clk 0:03:05.5]}
8... bxc6 {[%clk 0:02:57.4]} 9. Nxc6 {[%clk 0:03:07.4]} 9... Qd6 {[%clk
0:02:57.9]} 10. Nxe7+ {[%clk 0:03:09.3]} 10... Qxe7 {[%clk 0:02:59]} 11. Qa4
{[%clk 0:03:10.2]} 11... c5 {[%clk 0:02:51.2]} 12. Qxc4 {[%clk 0:03:02.3]} 12...
cxd4 {[%clk 0:02:51.9]} 13. Qxd4 {[%clk 0:03:01.1]} 13... Rd8 {[%clk 0:02:53.1]}
14. Qh4 {[%clk 0:02:59.7]} 14... h6 {[%clk 0:02:50.7]} 15. Nc3 {[%clk
0:02:56.1]} 15... Bb7 {[%clk 0:02:50.4]} 16. f3 {[%clk 0:02:56.3]} 16... Qc5+
{[%clk 0:02:47.7]} 17. Kg2 {[%clk 0:02:45.6]} 17... Nd5 {[%clk 0:02:48]} 18.
Nxd5 {[%clk 0:02:17.9]} 18... Rxd5 {[%clk 0:02:49.9]} 19. e4 {[%clk 0:01:56.3]}
19... Rh5 {[%clk 0:02:34.8]} 20. Qf4 {[%clk 0:01:44.2]} 20... Rd8 {[%clk
0:02:26.2]} 21. Be3 {[%clk 0:01:40.9]} 21... Qb5 {[%clk 0:02:21.3]} 22. Rf2
{[%clk 0:01:37.9]} 22... a5 {[%clk 0:01:40]} 23. Rc1 {[%clk 0:01:34.8]} 23...
Rd7 {[%clk 0:01:38.6]} 24. g4 {[%clk 0:01:19.2]} 24... Re5 {[%clk 0:01:37.4]}
25. a4 {[%clk 0:01:18.2]} 25... g5 {[%clk 0:01:22.4]} 26. Qg3 {[%clk 0:01:18.3]}
26... Qd3 {[%clk 0:01:18.4]} 27. Qxe5 {[%clk 0:01:02.7]} 27... Qxe3 {[%clk
0:01:19.2]} 28. Rc7 {[%clk 0:00:54.6]} 28... Rd2 {[%clk 0:01:04.6]} 29. Qg3
{[%clk 0:00:50.2]} 29... Ba6 {[%clk 0:00:31.6]} 30. Rxd2 {[%clk 0:00:48]} 30...
Qxd2+ {[%clk 0:00:33.5]} 31. Qf2 {[%clk 0:00:49.4]} 31... Qb4 {[%clk 0:00:32.5]}
32. Qc2 {[%clk 0:00:31.7]} 32... Bb7 {[%clk 0:00:22.1]} 33. Rd7 {[%clk
0:00:27.9]} 33... Qb6 {[%clk 0:00:18.7]} 34. Qd2 {[%clk 0:00:26.4]} 34... e5
{[%clk 0:00:17.9]} 35. Rd8+ {[%clk 0:00:26.4]} 35... Kg7 {[%clk 0:00:19.1]} 36.
Rd6 {[%clk 0:00:25.3]} 36... Qb3 {[%clk 0:00:18]} 37. Qc3 {[%clk 0:00:23.2]}
37... Qxa4 {[%clk 0:00:09.5]} 38. Qxe5+ {[%clk 0:00:23.9]} 38... Kh7 {[%clk
0:00:11]} 39. Qf5+ {[%clk 0:00:23.1]} 39... Kg7 {[%clk 0:00:12.2]} 40. Qf6+
{[%clk 0:00:24.2]} 40... Kh7 {[%clk 0:00:11.8]} 41. Qxh6+ {[%clk 0:00:24.9]} 1-0

[Event "*** Titled Tuesday Blitz"]
[Site "Chess.com"]
[Date "2018.04.03"]
[Round "7"]
[White "GMKrikor"]
[Black "Batica1984"]
[Result "1/2-1/2"]
[WhiteElo "2652"]
[BlackElo "2643"]
[TimeControl "180+2"]
[EndTime "14:32:26 PDT"]
[Termination "Game drawn by agreement"]

1. e4 {[%clk 0:03:01.9]} 1... c5 {[%clk 0:02:57.8]} 2. Nf3 {[%clk 0:03:01.3]}
2... Nc6 {[%clk 0:02:58.5]} 3. Bb5 {[%clk 0:03:01.7]} 3... d6 {[%clk 0:02:58.6]}
4. O-O {[%clk 0:02:59.3]} 4... Bd7 {[%clk 0:02:58.8]} 5. Re1 {[%clk 0:02:53.5]}
5... Nf6 {[%clk 0:02:59.3]} 6. c3 {[%clk 0:02:53.3]} 6... a6 {[%clk 0:02:59.8]}
7. Bf1 {[%clk 0:02:49]} 7... Bg4 {[%clk 0:02:59.8]} 8. h3 {[%clk 0:02:45.9]}
8... Bxf3 {[%clk 0:03:00.1]} 9. Qxf3 {[%clk 0:02:45]} 9... Rg8 {[%clk
0:02:58.8]} 10. Qd1 {[%clk 0:02:18.7]} 10... g5 {[%clk 0:02:57.4]} 11. d4 {[%clk
0:02:20]} 11... g4 {[%clk 0:02:57.2]} 12. dxc5 {[%clk 0:01:29.3]} 12... gxh3
{[%clk 0:02:50.6]} 13. g3 {[%clk 0:01:15.7]} 13... h5 {[%clk 0:02:49.8]} 14.
cxd6 {[%clk 0:01:07.1]} 14... h4 {[%clk 0:02:47.1]} 15. dxe7 {[%clk 0:01:03]}
15... Qxe7 {[%clk 0:02:44.7]} 16. Bf4 {[%clk 0:01:00]} 16... Rd8 {[%clk
0:02:38.4]} 17. Qe2 {[%clk 0:00:38.2]} 17... Ne5 {[%clk 0:02:38.5]} 18. Bxh3
{[%clk 0:00:28.5]} 18... hxg3 {[%clk 0:02:38.2]} 19. Bxg3 {[%clk 0:00:26.1]}
19... Rd2 {[%clk 0:02:38.6]} 20. Qe3 {[%clk 0:00:22.6]} 20... Rxb2 {[%clk
0:02:37]} 21. Bg2 {[%clk 0:00:18.6]} 21... Nfg4 {[%clk 0:02:31]} 22. Qa7 {[%clk
0:00:18.4]} 22... f6 {[%clk 0:02:24.7]} 23. Qb8+ {[%clk 0:00:14.8]} 23... Kf7
{[%clk 0:02:24.7]} 24. Qc8 {[%clk 0:00:10.7]} 24... Nxf2 {[%clk 0:02:15.9]} 25.
Bxf2 {[%clk 0:00:12.1]} 25... Nf3+ {[%clk 0:02:16.4]} 26. Kf1 {[%clk 0:00:13.6]}
26... Nh2+ {[%clk 0:02:13.8]} 27. Kg1 {[%clk 0:00:14.2]} 27... Nf3+ {[%clk
0:02:13.4]} 28. Kf1 {[%clk 0:00:15.6]} 28... Nxe1 {[%clk 0:02:14.5]} 29. Qc4+
{[%clk 0:00:08.1]} 29... Qe6 {[%clk 0:02:13.5]} 30. Qxe6+ {[%clk 0:00:09.1]}
30... Kxe6 {[%clk 0:02:14.4]} 31. Bh3+ {[%clk 0:00:11]} 31... Ke5 {[%clk
0:02:13.1]} 32. Kxe1 {[%clk 0:00:07.5]} 32... Bh6 {[%clk 0:02:08.3]} 33. Na3
{[%clk 0:00:06.6]} 33... Bd2+ {[%clk 0:01:58.3]} 34. Kf1 {[%clk 0:00:06.9]}
34... b5 {[%clk 0:01:58.6]} 35. Rb1 {[%clk 0:00:07.5]} 35... Bxc3 {[%clk
0:01:57.5]} 36. Rxb2 {[%clk 0:00:05.2]} 36... Bxb2 {[%clk 0:01:58.5]} 37. Nc2
{[%clk 0:00:06.6]} 37... Kxe4 {[%clk 0:01:59.4]} 38. Bg2+ {[%clk 0:00:07]} 38...
Kd3 {[%clk 0:02:00.3]} 39. Nb4+ {[%clk 0:00:08.4]} 39... Kc3 {[%clk 0:01:51.8]}
40. Nxa6 {[%clk 0:00:09.8]} 40... Ba3 {[%clk 0:01:48.8]} 41. Nc7 {[%clk
0:00:07.7]} 41... Rg5 {[%clk 0:01:49.6]} 42. Be3 {[%clk 0:00:06.8]} 42... Rf5+
{[%clk 0:01:49.7]} 43. Ke2 {[%clk 0:00:08.2]} 43... Re5 {[%clk 0:01:45.7]} 44.
Kf2 {[%clk 0:00:03.8]} 44... Rf5+ {[%clk 0:01:42.7]} 45. Ke2 {[%clk 0:00:04.7]}
45... Kb2 {[%clk 0:01:43.9]} 46. Bd5 {[%clk 0:00:04.6]} 46... Bd6 {[%clk
0:01:42.3]} 47. Bd4+ {[%clk 0:00:05.1]} 47... Kc1 {[%clk 0:01:41.1]} 48. Be3+
{[%clk 0:00:05.6]} 48... Kb2 {[%clk 0:01:40.6]} 49. Bd4+ {[%clk 0:00:07.2]}
49... Ka3 {[%clk 0:01:35.6]} 50. Nxb5+ {[%clk 0:00:07.9]} 50... Kb4 {[%clk
0:01:36.8]} 51. Nxd6 {[%clk 0:00:05.9]} 51... Rxd5 {[%clk 0:01:37.7]} 52. Bxf6
{[%clk 0:00:07.4]} 52... Rxd6 {[%clk 0:01:36]} 53. Be7 {[%clk 0:00:08.2]} 53...
Kc5 {[%clk 0:01:37.1]} 54. Bxd6+ {[%clk 0:00:07.9]} 54... Kxd6 {[%clk
0:01:38.1]} 55. Kd3 {[%clk 0:00:09.8]} 55... Kc5 {[%clk 0:01:39]} 56. a4 {[%clk
0:00:10.4]} 1/2-1/2

[Event "*** Titled Tuesday Blitz"]
[Site "Chess.com"]
[Date "2018.04.03"]
[Round "7"]
[White "Caisachess"]
[Black "Karina_Oparina"]
[Result "0-1"]
[WhiteElo "2182"]
[BlackElo "2138"]
[TimeControl "180+2"]
[EndTime "14:32:26 PDT"]
[Termination "Karina_Oparina won by resignation"]

1. e4 {[%clk 0:03:01.9]} 1... c6 {[%clk 0:03:00.5]} 2. d4 {[%clk 0:03:01.9]}
2... d5 {[%clk 0:03:01.1]} 3. exd5 {[%clk 0:03:03.5]} 3... cxd5 {[%clk
0:03:01.9]} 4. c4 {[%clk 0:03:05.1]} 4... Nf6 {[%clk 0:03:02.1]} 5. Nc3 {[%clk
0:03:05.6]} 5... e6 {[%clk 0:03:02.7]} 6. Nf3 {[%clk 0:03:06.8]} 6... Bb4 {[%clk
0:03:01.9]} 7. Bd3 {[%clk 0:03:07.7]} 7... O-O {[%clk 0:03:01.1]} 8. O-O {[%clk
0:03:07.6]} 8... Nc6 {[%clk 0:03:01.4]} 9. Bg5 {[%clk 0:03:06.3]} 9... h6 {[%clk
0:03:01.1]} 10. Bh4 {[%clk 0:03:06.5]} 10... Be7 {[%clk 0:03:00.5]} 11. a3
{[%clk 0:03:04.4]} 11... b6 {[%clk 0:02:58.8]} 12. Re1 {[%clk 0:03:03.7]} 12...
dxc4 {[%clk 0:02:44.6]} 13. Bxc4 {[%clk 0:03:03.7]} 13... Bb7 {[%clk 0:02:45.3]}
14. Ba2 {[%clk 0:02:52.9]} 14... Nd5 {[%clk 0:02:41.7]} 15. Nxd5 {[%clk
0:02:49.6]} 15... Bxh4 {[%clk 0:02:41.8]} 16. Ne3 {[%clk 0:02:43.5]} 16... Bf6
{[%clk 0:02:39.2]} 17. d5 {[%clk 0:02:36.6]} 17... exd5 {[%clk 0:02:39.2]} 18.
Qd2 {[%clk 0:02:08.4]} 18... Ne7 {[%clk 0:02:13.4]} 19. Rad1 {[%clk 0:02:05.4]}
19... Rc8 {[%clk 0:02:05.1]} 20. b4 {[%clk 0:02:05]} 20... d4 {[%clk 0:01:58.5]}
21. Ng4 {[%clk 0:02:03.4]} 21... Nf5 {[%clk 0:01:49.3]} 22. Nxf6+ {[%clk
0:02:04]} 22... Qxf6 {[%clk 0:01:49.8]} 23. Qf4 {[%clk 0:01:42.6]} 23... Rfe8
{[%clk 0:01:18.8]} 24. Bb1 {[%clk 0:01:37.3]} 24... Bxf3 {[%clk 0:01:05.8]} 25.
Qxf3 {[%clk 0:01:35.3]} 25... Nd6 {[%clk 0:01:04.4]} 26. Qxf6 {[%clk 0:01:28]}
26... gxf6 {[%clk 0:01:02.3]} 27. Kf1 {[%clk 0:01:26.3]} 27... Nb5 {[%clk
0:00:58.1]} 28. a4 {[%clk 0:01:22.6]} 28... Nc3 {[%clk 0:00:57.9]} 29. Rc1
{[%clk 0:01:17.3]} 29... Nxa4 {[%clk 0:00:49.2]} 30. Bf5 {[%clk 0:01:11.3]}
30... Rxc1 {[%clk 0:00:40.7]} 31. Rxc1 {[%clk 0:01:12.3]} 31... Nc3 {[%clk
0:00:41.6]} 32. Ra1 {[%clk 0:01:08.7]} 32... Re5 {[%clk 0:00:41.8]} 33. Bd3
{[%clk 0:01:08.4]} 33... a5 {[%clk 0:00:42]} 34. bxa5 {[%clk 0:01:08.7]} 34...
bxa5 {[%clk 0:00:38.8]} 35. Bc4 {[%clk 0:01:04.4]} 35... Rc5 {[%clk 0:00:38.3]}
36. Bd3 {[%clk 0:01:05.1]} 36... a4 {[%clk 0:00:33.4]} 37. Ke1 {[%clk
0:01:05.2]} 37... Ra5 {[%clk 0:00:30.4]} 38. Ra3 {[%clk 0:00:56.1]} 38... Ra7
{[%clk 0:00:25.3]} 39. Bc2 {[%clk 0:00:54]} 39... Re7+ {[%clk 0:00:24.1]} 40.
Kd2 {[%clk 0:00:53.4]} 40... Re2+ {[%clk 0:00:22.2]} 41. Kd3 {[%clk 0:00:54.4]}
41... Rxf2 {[%clk 0:00:22.4]} 42. Kxd4 {[%clk 0:00:46.9]} 42... Nb5+ {[%clk
0:00:18.5]} 0-1

[Event "*** Titled Tuesday Blitz"]
[Site "Chess.com"]
[Date "2018.04.03"]
[Round "7"]
[White "Patzel09"]
[Black "Fandorine"]
[Result "1-0"]
[WhiteElo "2563"]
[BlackElo "2698"]
[TimeControl "180+2"]
[EndTime "14:32:29 PDT"]
[Termination "Patzel09 won by resignation"]

1. e4 {[%clk 0:03:01.9]} 1... e5 {[%clk 0:03:00.8]} 2. f4 {[%clk 0:03:02.3]}
2... d5 {[%clk 0:02:58.4]} 3. exd5 {[%clk 0:03:02.7]} 3... exf4 {[%clk
0:02:59.6]} 4. Nf3 {[%clk 0:03:02.8]} 4... Nf6 {[%clk 0:02:59.4]} 5. Nc3 {[%clk
0:03:03.7]} 5... Bd6 {[%clk 0:02:53.1]} 6. Qe2+ {[%clk 0:03:01.6]} 6... Be7
{[%clk 0:02:49.3]} 7. d4 {[%clk 0:03:00.4]} 7... O-O {[%clk 0:02:50.7]} 8. Bxf4
{[%clk 0:02:59]} 8... Bb4 {[%clk 0:02:52.2]} 9. O-O-O {[%clk 0:02:55.9]} 9...
Bxc3 {[%clk 0:02:48.4]} 10. bxc3 {[%clk 0:02:57.8]} 10... Nxd5 {[%clk
0:02:48.8]} 11. Bd2 {[%clk 0:02:55.5]} 11... b5 {[%clk 0:02:45.2]} 12. Qxb5
{[%clk 0:02:40.3]} 12... c6 {[%clk 0:02:27.4]} 13. Qb3 {[%clk 0:02:35.5]} 13...
Nd7 {[%clk 0:02:28.1]} 14. c4 {[%clk 0:02:34.6]} 14... Rb8 {[%clk 0:02:28.9]}
15. Qa3 {[%clk 0:02:32]} 15... N5f6 {[%clk 0:01:57.9]} 16. Bd3 {[%clk
0:02:08.6]} 16... Nb6 {[%clk 0:01:56.9]} 17. Rhe1 {[%clk 0:02:04.4]} 17... Be6
{[%clk 0:01:57.7]} 18. Bb4 {[%clk 0:01:56.5]} 18... Re8 {[%clk 0:01:51.6]} 19.
Ne5 {[%clk 0:01:56.7]} 19... Qc8 {[%clk 0:01:01.9]} 20. Be7 {[%clk 0:01:51.6]}
20... Nfd7 {[%clk 0:00:49.6]} 21. Bd6 {[%clk 0:01:50.5]} 21... Nxe5 {[%clk
0:00:41.4]} 22. Rxe5 {[%clk 0:01:47.6]} 22... Rb7 {[%clk 0:00:37.3]} 23. Rde1
{[%clk 0:01:30.8]} 23... Rd8 {[%clk 0:00:31.5]} 24. Rxe6 {[%clk 0:01:15.8]}
24... fxe6 {[%clk 0:00:29.6]} 25. c5 {[%clk 0:01:17]} 25... Nd5 {[%clk
0:00:24.5]} 26. Ba6 {[%clk 0:01:17.7]} 26... Qd7 {[%clk 0:00:25.8]} 27. Bxb7
{[%clk 0:01:15.9]} 27... Qxb7 {[%clk 0:00:27.7]} 28. Qh3 {[%clk 0:01:08.1]}
28... h6 {[%clk 0:00:28.8]} 29. Qxe6+ {[%clk 0:01:06.5]} 29... Kh8 {[%clk
0:00:30]} 30. Be5 {[%clk 0:01:00.2]} 30... Kh7 {[%clk 0:00:30]} 31. Qf5+ {[%clk
0:00:57.4]} 31... Kg8 {[%clk 0:00:31]} 32. Rf1 {[%clk 0:00:56.6]} 32... Re8
{[%clk 0:00:21.4]} 33. Qg6 {[%clk 0:00:52.7]} 33... Re7 {[%clk 0:00:09.5]} 34.
Rf3 {[%clk 0:00:41.1]} 34... Qd7 {[%clk 0:00:04.6]} 35. Rb3 {[%clk 0:00:33.4]}
35... Re8 {[%clk 0:00:02.5]} 36. c4 {[%clk 0:00:17.4]} 36... Nf4 {[%clk
0:00:03.6]} 37. Bxf4 {[%clk 0:00:16.5]} 37... Re1+ {[%clk 0:00:04.7]} 38. Kd2
{[%clk 0:00:15.1]} 38... Qxd4+ {[%clk 0:00:06.2]} 39. Kxe1 {[%clk 0:00:13.9]}
1-0